[Event "Late-Titled-Tuesday-Blitz-March-05-2024"]
[Site "Chess.com"]
[Date "2024.03.05"]
[Round "4"]
[White "OverallStranger"]
[Black "Slovak_fighter2000"]
[Result "0-1"]
[WhiteElo "2377"]
[BlackElo "2633"]
[TimeControl "180+1"]
[EndTime "14:38:26 PST"]
[Termination "Slovak_fighter2000 won by resignation"]

1. e4 {[%clk 0:03:00.9]} 1... c5 {[%clk 0:02:57.4]} 2. Nc3 {[%clk 0:03:01.4]}
2... a6 {[%clk 0:02:55.3]} 3. g3 {[%clk 0:03:01.2]} 3... e6 {[%clk 0:02:50.8]}
4. Bg2 {[%clk 0:03:01.5]} 4... Nc6 {[%clk 0:02:50]} 5. d3 {[%clk 0:03:00.5]}
5... b5 {[%clk 0:02:49.1]} 6. Nh3 {[%clk 0:03:00.8]} 6... Bb7 {[%clk 0:02:47.7]}
7. O-O {[%clk 0:03:00.6]} 7... Nf6 {[%clk 0:02:47.7]} 8. f4 {[%clk 0:02:59]}
8... d5 {[%clk 0:02:43.5]} 9. e5 {[%clk 0:02:35.8]} 9... Nd7 {[%clk 0:02:43.2]}
10. f5 {[%clk 0:02:28.3]} 10... Ndxe5 {[%clk 0:02:32.1]} 11. fxe6 {[%clk
0:02:27]} 11... fxe6 {[%clk 0:02:32.2]} 12. Nf4 {[%clk 0:02:27.7]} 12... Qd6
{[%clk 0:02:27.1]} 13. Bh3 {[%clk 0:02:24.2]} 13... Nd4 {[%clk 0:02:22.1]} 14.
Be3 {[%clk 0:02:22.1]} 14... Nf5 {[%clk 0:02:14.3]} 15. Bxf5 {[%clk 0:01:52.9]}
15... exf5 {[%clk 0:02:15.2]} 16. d4 {[%clk 0:01:52]} 16... Ng4 {[%clk 0:02:02]}
17. dxc5 {[%clk 0:01:44.2]} 17... Nxe3 {[%clk 0:02:00.1]} 18. cxd6 {[%clk
0:01:44.6]} 18... Nxd1 {[%clk 0:02:00.4]} 19. Raxd1 {[%clk 0:01:44.9]} 19...
Bxd6 {[%clk 0:01:58]} 20. Ncxd5 {[%clk 0:01:31.5]} 20... Bc5+ {[%clk 0:01:56.3]}
21. Kg2 {[%clk 0:01:28.1]} 21... O-O {[%clk 0:01:55.7]} 22. Ne6 {[%clk
0:01:18.4]} 22... Rfc8 {[%clk 0:01:54.4]} 23. Kh3 {[%clk 0:01:13.7]} 23... Rc6
{[%clk 0:01:36.6]} 24. Nxc5 {[%clk 0:01:05.5]} 24... Rxc5 {[%clk 0:01:34.3]} 25.
Rxf5 {[%clk 0:01:05.2]} 25... Bxd5 {[%clk 0:01:27.2]} 26. Rdxd5 {[%clk
0:00:57.5]} 26... Rxc2 {[%clk 0:01:27.2]} 27. Rd7 {[%clk 0:00:35.2]} 27... Rf8
{[%clk 0:01:23.3]} 28. Rxf8+ {[%clk 0:00:34.5]} 28... Kxf8 {[%clk 0:01:24.2]}
29. Ra7 {[%clk 0:00:34.8]} 29... Rxb2 {[%clk 0:01:23.6]} 30. Rxa6 {[%clk
0:00:35.4]} 30... h6 {[%clk 0:01:22.1]} 31. g4 {[%clk 0:00:27.3]} 31... Kf7
{[%clk 0:01:20.1]} 32. Kg3 {[%clk 0:00:27.4]} 32... Rb4 {[%clk 0:01:18.2]} 33.
Ra3 {[%clk 0:00:23.4]} 33... Kf6 {[%clk 0:01:15.1]} 34. Kf3 {[%clk 0:00:20.6]}
34... Kg5 {[%clk 0:01:10.4]} 35. h3 {[%clk 0:00:19.8]} 35... Kh4 {[%clk
0:01:06.4]} 36. Kg2 {[%clk 0:00:16.1]} 36... Rb2+ {[%clk 0:01:06.3]} 37. Kh1
{[%clk 0:00:15.3]} 37... b4 {[%clk 0:01:04.7]} 38. Rb3 {[%clk 0:00:12.7]} 38...
Rxb3 {[%clk 0:01:04.1]} 39. axb3 {[%clk 0:00:13.3]} 39... Kxh3 {[%clk 0:01:05]}
40. g5 {[%clk 0:00:13.4]} 40... hxg5 {[%clk 0:01:05.2]} 41. Kg1 {[%clk
0:00:14.3]} 41... g4 {[%clk 0:01:05.8]} 42. Kf2 {[%clk 0:00:15.2]} 42... g3+
{[%clk 0:01:06.2]} 43. Kg1 {[%clk 0:00:16.1]} 43... g2 {[%clk 0:01:06.6]} 44.
Kf2 {[%clk 0:00:16.8]} 44... Kh2 {[%clk 0:01:07.5]} 0-1

[Event "Late-Titled-Tuesday-Blitz-March-05-2024"]
[Site "Chess.com"]
[Date "2024.03.05"]
[Round "4"]
[White "aranibos"]
[Black "shirovin"]
[Result "0-1"]
[WhiteElo "2268"]
[BlackElo "2062"]
[TimeControl "180+1"]
[EndTime "14:38:26 PST"]
[Termination "shirovin won by resignation"]

1. d4 {[%clk 0:03:00.9]} 1... Nf6 {[%clk 0:02:58.7]} 2. c3 {[%clk 0:03:01.4]}
2... d5 {[%clk 0:02:56.4]} 3. Bg5 {[%clk 0:03:01.7]} 3... g6 {[%clk 0:02:56.2]}
4. Nd2 {[%clk 0:02:57.8]} 4... Bg7 {[%clk 0:02:55.9]} 5. Bxf6 {[%clk 0:02:53.8]}
5... exf6 {[%clk 0:02:54.1]} 6. e3 {[%clk 0:02:48.3]} 6... O-O {[%clk
0:02:52.2]} 7. Bd3 {[%clk 0:02:48]} 7... f5 {[%clk 0:02:48.8]} 8. h4 {[%clk
0:02:46.4]} 8... h5 {[%clk 0:02:46.4]} 9. Ngf3 {[%clk 0:02:46.2]} 9... Nd7
{[%clk 0:02:42.2]} 10. Qb3 {[%clk 0:02:45.6]} 10... Nf6 {[%clk 0:02:40.8]} 11.
Ne5 {[%clk 0:02:44]} 11... Ng4 {[%clk 0:02:30.9]} 12. Nxg4 {[%clk 0:02:41.1]}
12... fxg4 {[%clk 0:02:29.7]} 13. O-O-O {[%clk 0:02:40.8]} 13... a5 {[%clk
0:02:24.9]} 14. e4 {[%clk 0:02:39.5]} 14... dxe4 {[%clk 0:02:14.9]} 15. Nxe4
{[%clk 0:02:39.5]} 15... a4 {[%clk 0:02:10.2]} 16. Qc2 {[%clk 0:02:38.2]} 16...
Be6 {[%clk 0:01:56.3]} 17. Kb1 {[%clk 0:02:36.1]} 17... Qd5 {[%clk 0:01:47.8]}
18. c4 {[%clk 0:02:10.3]} 18... Qxd4 {[%clk 0:01:47.2]} 19. Ng5 {[%clk
0:02:10.9]} 19... Qf6 {[%clk 0:01:39.8]} 20. Nxe6 {[%clk 0:02:00.4]} 20... Qxe6
{[%clk 0:01:38.8]} 21. Rhe1 {[%clk 0:01:58.2]} 21... Qf6 {[%clk 0:01:35.4]} 22.
g3 {[%clk 0:01:49.4]} 22... a3 {[%clk 0:01:34]} 23. Re2 {[%clk 0:01:44]} 23...
axb2 {[%clk 0:01:32.2]} 24. Qxb2 {[%clk 0:01:42.5]} 24... Qxb2+ {[%clk
0:01:30.1]} 25. Rxb2 {[%clk 0:01:42.8]} 25... Bxb2 {[%clk 0:01:29.8]} 26. Kxb2
{[%clk 0:01:43.3]} 26... Rad8 {[%clk 0:01:26]} 27. Kc2 {[%clk 0:01:39.7]} 27...
Rd6 {[%clk 0:01:25]} 28. Rb1 {[%clk 0:01:29.9]} 28... Rfd8 {[%clk 0:01:21.6]}
29. Rb3 {[%clk 0:01:26.9]} 29... b6 {[%clk 0:01:19.4]} 30. a4 {[%clk 0:01:23.9]}
30... Kg7 {[%clk 0:01:12.7]} 31. Kd2 {[%clk 0:01:20.4]} 31... Kf6 {[%clk
0:01:10]} 32. Ke3 {[%clk 0:01:19.9]} 32... Ke5 {[%clk 0:01:07.8]} 33. c5 {[%clk
0:01:16.8]} 33... Rxd3+ {[%clk 0:01:02.6]} 34. Rxd3 {[%clk 0:01:15.9]} 34...
Rxd3+ {[%clk 0:01:03.2]} 35. Kxd3 {[%clk 0:01:16.3]} 35... Kd5 {[%clk
0:01:02.4]} 36. cxb6 {[%clk 0:01:16.6]} 36... cxb6 {[%clk 0:01:01.9]} 37. Kc3
{[%clk 0:01:15]} 37... Kc5 {[%clk 0:01:01]} 38. Kb3 {[%clk 0:01:13.6]} 38... f6
{[%clk 0:00:57.3]} 39. Kc3 {[%clk 0:01:13.4]} 39... g5 {[%clk 0:00:52.1]} 40.
Kd3 {[%clk 0:00:52.2]} 40... gxh4 {[%clk 0:00:43.1]} 41. gxh4 {[%clk 0:00:52.3]}
41... Kb4 {[%clk 0:00:42.4]} 42. Ke4 {[%clk 0:00:52.3]} 42... Kxa4 {[%clk
0:00:42.8]} 43. Kf5 {[%clk 0:00:52.7]} 43... b5 {[%clk 0:00:43.4]} 44. Kxf6
{[%clk 0:00:53.2]} 44... b4 {[%clk 0:00:44]} 45. Kg5 {[%clk 0:00:53.6]} 45... b3
{[%clk 0:00:44.6]} 46. Kxh5 {[%clk 0:00:54]} 46... b2 {[%clk 0:00:45.2]} 47.
Kxg4 {[%clk 0:00:54.3]} 47... b1=Q {[%clk 0:00:45.6]} 48. f4 {[%clk 0:00:54.5]}
48... Qg6+ {[%clk 0:00:44]} 49. Kf3 {[%clk 0:00:54]} 49... Kb4 {[%clk
0:00:42.9]} 0-1

[Event "Late-Titled-Tuesday-Blitz-March-05-2024"]
[Site "Chess.com"]
[Date "2024.03.05"]
[Round "4"]
[White "Mikhal867"]
[Black "kids2010"]
[Result "0-1"]
[WhiteElo "2489"]
[BlackElo "2808"]
[TimeControl "180+1"]
[EndTime "14:38:27 PST"]
[Termination "kids2010 won on time"]

1. d4 {[%clk 0:02:59.8]} 1... d5 {[%clk 0:02:59.9]} 2. c4 {[%clk 0:02:59.6]}
2... e6 {[%clk 0:02:59.8]} 3. Nf3 {[%clk 0:02:59.8]} 3... Nf6 {[%clk 0:02:59.7]}
4. g3 {[%clk 0:03:00.1]} 4... Bb4+ {[%clk 0:02:59.4]} 5. Bd2 {[%clk 0:02:59.2]}
5... Be7 {[%clk 0:02:59.3]} 6. Bg2 {[%clk 0:02:56.4]} 6... O-O {[%clk
0:02:59.1]} 7. O-O {[%clk 0:02:56.2]} 7... c6 {[%clk 0:02:59.1]} 8. Qc2 {[%clk
0:02:55.5]} 8... Nbd7 {[%clk 0:02:58.8]} 9. b3 {[%clk 0:02:45.9]} 9... b6 {[%clk
0:02:58.4]} 10. Bc3 {[%clk 0:02:41.1]} 10... Ba6 {[%clk 0:02:57.4]} 11. Bb2
{[%clk 0:02:30.9]} 11... Rc8 {[%clk 0:02:57.1]} 12. Rd1 {[%clk 0:02:19.5]} 12...
Ne4 {[%clk 0:02:56.1]} 13. Nfd2 {[%clk 0:02:15.3]} 13... f5 {[%clk 0:02:55.9]}
14. Nc3 {[%clk 0:02:06.6]} 14... Ndf6 {[%clk 0:02:49.4]} 15. Rac1 {[%clk
0:01:40.3]} 15... Ng4 {[%clk 0:02:40.6]} 16. Rf1 {[%clk 0:01:03.2]} 16... Bg5
{[%clk 0:02:35.9]} 17. Nf3 {[%clk 0:00:55.2]} 17... Bxc1 {[%clk 0:02:34.8]} 18.
Qxc1 {[%clk 0:00:49.6]} 18... Nxc3 {[%clk 0:02:32.5]} 19. Qxc3 {[%clk
0:00:48.4]} 19... Nf6 {[%clk 0:02:33.4]} 20. Ne5 {[%clk 0:00:47.5]} 20... Nd7
{[%clk 0:02:29]} 21. Nd3 {[%clk 0:00:46.7]} 21... Qe7 {[%clk 0:02:24.2]} 22. Rc1
{[%clk 0:00:43.8]} 22... Bb7 {[%clk 0:02:21.5]} 23. c5 {[%clk 0:00:43.6]} 23...
Ba6 {[%clk 0:02:17.4]} 24. Nf4 {[%clk 0:00:31.2]} 24... g5 {[%clk 0:02:16.7]}
25. Nd3 {[%clk 0:00:26.3]} 25... Bxd3 {[%clk 0:02:16.2]} 26. Qxd3 {[%clk
0:00:26.2]} 26... b5 {[%clk 0:02:11.3]} 27. f3 {[%clk 0:00:23.1]} 27... Nf6
{[%clk 0:02:07.3]} 28. Rf1 {[%clk 0:00:21.8]} 28... h6 {[%clk 0:02:05.9]} 29.
Bc1 {[%clk 0:00:21.6]} 29... Qg7 {[%clk 0:02:02.1]} 30. Kh1 {[%clk 0:00:20.6]}
30... Rce8 {[%clk 0:02:01.2]} 31. f4 {[%clk 0:00:18.3]} 31... Ne4 {[%clk
0:01:59.9]} 32. Bxe4 {[%clk 0:00:16.9]} 32... dxe4 {[%clk 0:01:57]} 33. Qc3
{[%clk 0:00:16.2]} 33... Rd8 {[%clk 0:01:57]} 34. Be3 {[%clk 0:00:15.5]} 34...
Rd7 {[%clk 0:01:52.5]} 35. Qb4 {[%clk 0:00:14.9]} 35... Rfd8 {[%clk 0:01:51.9]}
36. a4 {[%clk 0:00:11.6]} 36... a6 {[%clk 0:01:51]} 37. Qc3 {[%clk 0:00:10.5]}
37... Kh7 {[%clk 0:01:50.5]} 38. Qa5 {[%clk 0:00:10.1]} 38... Ra8 {[%clk
0:01:41.3]} 39. Qb6 {[%clk 0:00:09.7]} 39... Rc7 {[%clk 0:01:41]} 40. fxg5
{[%clk 0:00:07.6]} 40... hxg5 {[%clk 0:01:39.7]} 41. Bxg5 {[%clk 0:00:07.9]}
41... Qd7 {[%clk 0:01:39.3]} 42. Bf4 {[%clk 0:00:07.3]} 42... Rb7 {[%clk
0:01:39.4]} 43. Qa5 {[%clk 0:00:06.6]} 43... Qxd4 {[%clk 0:01:39.6]} 44. Bd6
{[%clk 0:00:04.6]} 44... bxa4 {[%clk 0:01:34.8]} 45. bxa4 {[%clk 0:00:04.6]}
45... Qe3 {[%clk 0:01:32.3]} 46. Qe1 {[%clk 0:00:01.3]} 46... Rb2 {[%clk
0:01:30.3]} 0-1

[Event "Late-Titled-Tuesday-Blitz-March-05-2024"]
[Site "Chess.com"]
[Date "2024.03.05"]
[Round "4"]
[White "sotochess"]
[Black "KorolDimitriy75"]
[Result "1-0"]
[WhiteElo "2582"]
[BlackElo "2423"]
[TimeControl "180+1"]
[EndTime "14:38:28 PST"]
[Termination "sotochess won on time"]

1. e4 {[%clk 0:03:00]} 1... c5 {[%clk 0:03:00.3]} 2. Nf3 {[%clk 0:02:54]} 2...
d6 {[%clk 0:03:00.6]} 3. d4 {[%clk 0:02:53.9]} 3... cxd4 {[%clk 0:03:01.5]} 4.
Nxd4 {[%clk 0:02:54.7]} 4... Nf6 {[%clk 0:03:01.9]} 5. f3 {[%clk 0:02:55.1]}
5... g6 {[%clk 0:03:02.8]} 6. c4 {[%clk 0:02:54.9]} 6... Bg7 {[%clk 0:03:03]} 7.
Nc3 {[%clk 0:02:54.9]} 7... O-O {[%clk 0:03:03.1]} 8. Be3 {[%clk 0:02:54.9]}
8... Nc6 {[%clk 0:03:03.8]} 9. Nc2 {[%clk 0:02:54.8]} 9... a5 {[%clk 0:02:59.7]}
10. Qd2 {[%clk 0:02:52.9]} 10... Nd7 {[%clk 0:02:51]} 11. Be2 {[%clk 0:02:51.7]}
11... Nc5 {[%clk 0:02:50.6]} 12. O-O {[%clk 0:02:51.1]} 12... a4 {[%clk
0:02:41.8]} 13. Rac1 {[%clk 0:02:47.9]} 13... Qa5 {[%clk 0:02:41]} 14. Na3
{[%clk 0:02:47.6]} 14... Be6 {[%clk 0:02:05.6]} 15. Rfd1 {[%clk 0:02:41.5]}
15... Rfc8 {[%clk 0:02:04.7]} 16. Bf1 {[%clk 0:02:40.9]} 16... Qb4 {[%clk
0:01:51.3]} 17. h3 {[%clk 0:02:19.6]} 17... Kf8 {[%clk 0:01:18.4]} 18. Bh6
{[%clk 0:02:13.7]} 18... Na5 {[%clk 0:00:41.6]} 19. Rc2 {[%clk 0:01:47]} 19...
Bxh6 {[%clk 0:00:33.2]} 20. Qxh6+ {[%clk 0:01:46.1]} 20... Kg8 {[%clk
0:00:34.1]} 21. f4 {[%clk 0:01:02.8]} 21... Bxc4 {[%clk 0:00:20.6]} 22. Nxc4
{[%clk 0:00:54.2]} 22... Nxc4 {[%clk 0:00:18.9]} 23. Nd5 {[%clk 0:00:54.3]}
23... Ne3 {[%clk 0:00:12.7]} 24. Nxb4 {[%clk 0:00:49.7]} 24... Nxd1 {[%clk
0:00:12.6]} 25. Nd5 {[%clk 0:00:48.9]} 25... Re8 {[%clk 0:00:08.2]} 26. f5
{[%clk 0:00:47.8]} 26... Rac8 {[%clk 0:00:05.5]} 27. f6 {[%clk 0:00:46.6]} 27...
e6 {[%clk 0:00:04.5]} 28. Ne7+ {[%clk 0:00:45.8]} 1-0

[Event "Late-Titled-Tuesday-Blitz-March-05-2024"]
[Site "Chess.com"]
[Date "2024.03.05"]
[Round "4"]
[White "Penafiel-Josselyne02"]
[Black "jactorres"]
[Result "1-0"]
[WhiteElo "2053"]
[BlackElo "2261"]
[TimeControl "180+1"]
[EndTime "14:38:31 PST"]
[Termination "Penafiel-Josselyne02 won on time"]

1. d4 {[%clk 0:02:56.1]} 1... Nf6 {[%clk 0:02:53.5]} 2. c4 {[%clk 0:02:51.4]}
2... e6 {[%clk 0:02:53.9]} 3. Nf3 {[%clk 0:02:51.1]} 3... b6 {[%clk 0:02:53.1]}
4. g3 {[%clk 0:02:50.9]} 4... Bb7 {[%clk 0:02:53.4]} 5. Bg2 {[%clk 0:02:51.1]}
5... Be7 {[%clk 0:02:51.9]} 6. O-O {[%clk 0:02:50.4]} 6... O-O {[%clk
0:02:52.1]} 7. d5 {[%clk 0:02:50.7]} 7... exd5 {[%clk 0:02:51.3]} 8. Nh4 {[%clk
0:02:50.8]} 8... c6 {[%clk 0:02:38.5]} 9. cxd5 {[%clk 0:02:50.1]} 9... Nxd5
{[%clk 0:02:31]} 10. e4 {[%clk 0:02:50.1]} 10... Nc7 {[%clk 0:02:31.2]} 11. Nf5
{[%clk 0:02:50.1]} 11... d5 {[%clk 0:02:23.9]} 12. Qg4 {[%clk 0:02:43.6]} 12...
Bf6 {[%clk 0:02:17.8]} 13. Nc3 {[%clk 0:02:43.3]} 13... d4 {[%clk 0:02:07.6]}
14. Rd1 {[%clk 0:02:20.1]} 14... Bc8 {[%clk 0:01:59.5]} 15. Bh6 {[%clk 0:01:56]}
15... Bxf5 {[%clk 0:01:59.1]} 16. exf5 {[%clk 0:01:55.2]} 16... Nd7 {[%clk
0:01:41.1]} 17. f4 {[%clk 0:01:35.4]} 17... dxc3 {[%clk 0:01:26.5]} 18. Bxc6
{[%clk 0:01:34.7]} 18... Qe7 {[%clk 0:00:58.4]} 19. Rxd7 {[%clk 0:01:20.6]}
19... Qc5+ {[%clk 0:00:58]} 20. Kf1 {[%clk 0:01:11.2]} 20... cxb2 {[%clk
0:00:56.9]} 21. Rb1 {[%clk 0:01:08.9]} 21... Qxc6 {[%clk 0:00:40.1]} 22. Re7
{[%clk 0:01:08.2]} 22... Qh1+ {[%clk 0:00:37.6]} 23. Kf2 {[%clk 0:01:03.6]}
23... Qxb1 {[%clk 0:00:36.4]} 24. Bxg7 {[%clk 0:00:56.2]} 24... Qc2+ {[%clk
0:00:32.7]} 25. Re2 {[%clk 0:00:50.9]} 25... Qc5+ {[%clk 0:00:32.5]} 26. Kg2
{[%clk 0:00:50.6]} 26... Qd5+ {[%clk 0:00:24.8]} 27. Kh3 {[%clk 0:00:45.1]}
27... Bxg7 {[%clk 0:00:02.2]} 28. f6 {[%clk 0:00:44.6]} 28... Qd7 {[%clk
0:00:01.2]} 29. f5 {[%clk 0:00:43.9]} 29... Qxf5 {[%clk 0:00:01.2]} 30. Qxf5
{[%clk 0:00:43.2]} 1-0

[Event "Late-Titled-Tuesday-Blitz-March-05-2024"]
[Site "Chess.com"]
[Date "2024.03.05"]
[Round "4"]
[White "mac0504"]
[Black "VinzentSpitzl"]
[Result "1-0"]
[WhiteElo "2718"]
[BlackElo "2544"]
[TimeControl "180+1"]
[EndTime "14:38:36 PST"]
[Termination "mac0504 won by checkmate"]

1. c4 {[%clk 0:02:23.7]} 1... e6 {[%clk 0:02:58.4]} 2. g3 {[%clk 0:02:23]} 2...
d5 {[%clk 0:02:58.3]} 3. Bg2 {[%clk 0:02:23.9]} 3... Nf6 {[%clk 0:02:58.8]} 4.
Nf3 {[%clk 0:02:24.5]} 4... Be7 {[%clk 0:02:58.9]} 5. b3 {[%clk 0:02:25.1]} 5...
O-O {[%clk 0:02:59]} 6. Bb2 {[%clk 0:02:25.6]} 6... c5 {[%clk 0:02:59.4]} 7. e3
{[%clk 0:02:25.8]} 7... Nc6 {[%clk 0:02:59.5]} 8. O-O {[%clk 0:02:26.3]} 8... d4
{[%clk 0:02:59.4]} 9. exd4 {[%clk 0:02:27.2]} 9... cxd4 {[%clk 0:02:59.8]} 10.
d3 {[%clk 0:02:27.9]} 10... Bc5 {[%clk 0:02:51.8]} 11. Re1 {[%clk 0:02:27]}
11... Re8 {[%clk 0:02:45.3]} 12. Na3 {[%clk 0:02:27.1]} 12... e5 {[%clk
0:02:40.6]} 13. Nc2 {[%clk 0:02:23.4]} 13... a5 {[%clk 0:02:40.5]} 14. a3 {[%clk
0:02:23.2]} 14... Bf5 {[%clk 0:02:29.8]} 15. Nh4 {[%clk 0:02:19.6]} 15... Bg4
{[%clk 0:02:27.7]} 16. Qd2 {[%clk 0:02:20.3]} 16... Qd6 {[%clk 0:02:09]} 17. h3
{[%clk 0:02:12.5]} 17... Bd7 {[%clk 0:02:07.5]} 18. Rab1 {[%clk 0:01:54.9]}
18... h6 {[%clk 0:01:48]} 19. Bc1 {[%clk 0:01:54.5]} 19... g5 {[%clk 0:01:40.6]}
20. Nf3 {[%clk 0:01:53.4]} 20... e4 {[%clk 0:01:40.5]} 21. dxe4 {[%clk
0:01:29.4]} 21... Nxe4 {[%clk 0:01:40.1]} 22. Rxe4 {[%clk 0:01:30]} 22... Rxe4
{[%clk 0:01:38.7]} 23. Nxg5 {[%clk 0:01:30.8]} 23... Re5 {[%clk 0:00:40.6]} 24.
Ne4 {[%clk 0:01:22.6]} 24... Qe7 {[%clk 0:00:37.8]} 25. Nxc5 {[%clk 0:01:16.5]}
25... Qxc5 {[%clk 0:00:37.4]} 26. Qxh6 {[%clk 0:01:11.9]} 26... Rae8 {[%clk
0:00:33.6]} 27. Bf4 {[%clk 0:00:58.5]} 27... Re2 {[%clk 0:00:33.1]} 28. Bd5
{[%clk 0:00:48.5]} 28... Qe7 {[%clk 0:00:20.8]} 29. Qg6+ {[%clk 0:00:43.2]}
29... Kh8 {[%clk 0:00:20.8]} 30. Bxf7 {[%clk 0:00:41.9]} 30... d3 {[%clk
0:00:04.4]} 31. Qh6# {[%clk 0:00:40.8]} 1-0

[Event "Late-Titled-Tuesday-Blitz-March-05-2024"]
[Site "Chess.com"]
[Date "2024.03.05"]
[Round "4"]
[White "TheAlienParty"]
[Black "DraningWaterHi"]
[Result "0-1"]
[WhiteElo "2388"]
[BlackElo "2204"]
[TimeControl "180+1"]
[EndTime "14:38:36 PST"]
[Termination "DraningWaterHi won by checkmate"]

1. c4 {[%clk 0:03:00]} 1... Nf6 {[%clk 0:02:57.1]} 2. Nf3 {[%clk 0:02:58.3]}
2... g6 {[%clk 0:02:56.9]} 3. b3 {[%clk 0:02:57.8]} 3... Bg7 {[%clk 0:02:57.8]}
4. Bb2 {[%clk 0:02:57.8]} 4... O-O {[%clk 0:02:58.6]} 5. g3 {[%clk 0:02:57.6]}
5... d6 {[%clk 0:02:59.1]} 6. Bg2 {[%clk 0:02:57.5]} 6... e5 {[%clk 0:02:59.7]}
7. d3 {[%clk 0:02:57.6]} 7... Nfd7 {[%clk 0:02:58.3]} 8. Qc2 {[%clk 0:02:57.5]}
8... f5 {[%clk 0:02:58.8]} 9. Nbd2 {[%clk 0:02:57]} 9... Nc6 {[%clk 0:02:59.1]}
10. O-O {[%clk 0:02:56.6]} 10... a5 {[%clk 0:02:59.1]} 11. a3 {[%clk 0:02:55.5]}
11... Nc5 {[%clk 0:02:58.8]} 12. Bc3 {[%clk 0:02:52.3]} 12... Bd7 {[%clk
0:02:54]} 13. Qb2 {[%clk 0:02:51.8]} 13... b6 {[%clk 0:02:49.4]} 14. d4 {[%clk
0:02:50.5]} 14... exd4 {[%clk 0:02:45.8]} 15. Nxd4 {[%clk 0:02:50.1]} 15... Nxd4
{[%clk 0:02:44.3]} 16. Bxd4 {[%clk 0:02:49.4]} 16... Bxd4 {[%clk 0:02:41.7]} 17.
Qxd4 {[%clk 0:02:49]} 17... Ra7 {[%clk 0:02:38.6]} 18. b4 {[%clk 0:02:48.7]}
18... Ne6 {[%clk 0:02:36.4]} 19. Qe3 {[%clk 0:02:44.1]} 19... Qf6 {[%clk
0:02:35.2]} 20. Bd5 {[%clk 0:02:41.6]} 20... Kg7 {[%clk 0:02:33.3]} 21. Bxe6
{[%clk 0:02:16.6]} 21... Qxe6 {[%clk 0:02:27]} 22. Qb3 {[%clk 0:02:13.9]} 22...
Qxe2 {[%clk 0:02:23]} 23. Nf3 {[%clk 0:02:10.4]} 23... Qe7 {[%clk 0:02:13]} 24.
Rae1 {[%clk 0:02:06.4]} 24... Qf6 {[%clk 0:02:12.3]} 25. Re3 {[%clk 0:02:02.4]}
25... Be6 {[%clk 0:02:10.3]} 26. Rfe1 {[%clk 0:01:59.3]} 26... Bf7 {[%clk
0:02:10.4]} 27. Re7 {[%clk 0:01:58.3]} 27... axb4 {[%clk 0:02:06.4]} 28. axb4
{[%clk 0:01:55.8]} 28... Ra1 {[%clk 0:02:06.4]} 29. Rxc7 {[%clk 0:01:49.4]}
29... Rxe1+ {[%clk 0:02:05.3]} 30. Nxe1 {[%clk 0:01:49.2]} 30... Qa1 {[%clk
0:02:05.4]} 31. Qe3 {[%clk 0:01:47.4]} 31... Kg8 {[%clk 0:02:00.5]} 32. Kg2
{[%clk 0:01:46.7]} 32... Re8 {[%clk 0:01:59.9]} 33. Re7 {[%clk 0:01:44.7]} 33...
Rxe7 {[%clk 0:01:59.7]} 34. Qxe7 {[%clk 0:01:44.3]} 34... Bxc4 {[%clk
0:02:00.3]} 35. Qe8+ {[%clk 0:01:36.6]} 35... Kg7 {[%clk 0:01:55.4]} 36. Qd7+
{[%clk 0:01:33.2]} 36... Bf7 {[%clk 0:01:55]} 37. Nf3 {[%clk 0:01:30.6]} 37...
Qf6 {[%clk 0:01:53.2]} 38. h4 {[%clk 0:01:29.6]} 38... h6 {[%clk 0:01:51]} 39.
b5 {[%clk 0:01:29.3]} 39... d5 {[%clk 0:01:49.9]} 40. Qc7 {[%clk 0:01:25.7]}
40... Kf8 {[%clk 0:01:21.3]} 41. Qb8+ {[%clk 0:01:24.3]} 41... Be8 {[%clk
0:01:12]} 42. Ne5 {[%clk 0:01:23.3]} 42... Qe6 {[%clk 0:01:09.4]} 43. Kg1 {[%clk
0:01:06.7]} 43... d4 {[%clk 0:01:06.9]} 44. Nc6 {[%clk 0:01:02.9]} 44... d3
{[%clk 0:01:05.7]} 45. Qxb6 {[%clk 0:01:02.3]} 45... Qd6 {[%clk 0:00:58.3]} 46.
Qe3 {[%clk 0:00:46.9]} 46... d2 {[%clk 0:00:56.6]} 47. Qxh6+ {[%clk 0:00:46.6]}
47... Kg8 {[%clk 0:00:56.4]} 48. Qe3 {[%clk 0:00:39.2]} 48... d1=Q+ {[%clk
0:00:56]} 49. Kh2 {[%clk 0:00:38.9]} 49... Bxc6 {[%clk 0:00:55.2]} 50. bxc6
{[%clk 0:00:38.3]} 50... Qxc6 {[%clk 0:00:55]} 51. h5 {[%clk 0:00:32]} 51...
Qdh1# {[%clk 0:00:54.4]} 0-1

[Event "Late-Titled-Tuesday-Blitz-March-05-2024"]
[Site "Chess.com"]
[Date "2024.03.05"]
[Round "4"]
[White "manitodeplomo"]
[Black "Bilan_Danila"]
[Result "1-0"]
[WhiteElo "2721"]
[BlackElo "2545"]
[TimeControl "180+1"]
[EndTime "14:38:38 PST"]
[Termination "manitodeplomo won on time"]

1. d4 {[%clk 0:03:00.9]} 1... d5 {[%clk 0:02:59.7]} 2. c4 {[%clk 0:03:00.4]}
2... c6 {[%clk 0:02:59.6]} 3. Nf3 {[%clk 0:02:59.7]} 3... Nf6 {[%clk 0:02:59.6]}
4. Nc3 {[%clk 0:03:00.2]} 4... e6 {[%clk 0:02:59.8]} 5. Bg5 {[%clk 0:02:59.8]}
5... Nbd7 {[%clk 0:02:59.5]} 6. e3 {[%clk 0:03:00.3]} 6... Be7 {[%clk 0:03:00]}
7. Qc2 {[%clk 0:02:58.6]} 7... b6 {[%clk 0:02:58.2]} 8. O-O-O {[%clk 0:02:55.4]}
8... Bb7 {[%clk 0:02:57.8]} 9. Ne5 {[%clk 0:02:54.3]} 9... Nxe5 {[%clk
0:02:53.8]} 10. dxe5 {[%clk 0:02:54.1]} 10... Nd7 {[%clk 0:02:54.5]} 11. Bxe7
{[%clk 0:02:54]} 11... Qxe7 {[%clk 0:02:54.2]} 12. f4 {[%clk 0:02:54.6]} 12...
f6 {[%clk 0:02:34.6]} 13. e4 {[%clk 0:02:28.8]} 13... fxe5 {[%clk 0:02:19]} 14.
exd5 {[%clk 0:02:28.5]} 14... exd5 {[%clk 0:02:12.5]} 15. cxd5 {[%clk
0:02:29.4]} 15... cxd5 {[%clk 0:02:02.2]} 16. Nxd5 {[%clk 0:02:28.1]} 16... Bxd5
{[%clk 0:01:55.4]} 17. Rxd5 {[%clk 0:02:29]} 17... O-O {[%clk 0:01:50.1]} 18.
Bc4 {[%clk 0:02:22.7]} 18... Kh8 {[%clk 0:01:44.9]} 19. Rhd1 {[%clk 0:02:22.2]}
19... Nc5 {[%clk 0:01:10]} 20. Rxe5 {[%clk 0:02:13.3]} 20... Qf6 {[%clk
0:01:07]} 21. g3 {[%clk 0:02:12.1]} 21... Rad8 {[%clk 0:01:00.3]} 22. Rxd8
{[%clk 0:02:07.2]} 22... Rxd8 {[%clk 0:00:59.1]} 23. Qe2 {[%clk 0:02:07.3]}
23... g6 {[%clk 0:00:45.6]} 24. b4 {[%clk 0:01:50.3]} 24... Nd7 {[%clk
0:00:34.8]} 25. Re8+ {[%clk 0:01:50]} 25... Rxe8 {[%clk 0:00:28.2]} 26. Qxe8+
{[%clk 0:01:50.9]} 26... Nf8 {[%clk 0:00:28.9]} 27. Qf7 {[%clk 0:01:32.1]} 27...
Qxf7 {[%clk 0:00:04]} 28. Bxf7 {[%clk 0:01:31.5]} 28... Kg7 {[%clk 0:00:04.9]}
29. Bd5 {[%clk 0:01:29]} 29... Kf6 {[%clk 0:00:05.3]} 30. Kd2 {[%clk 0:01:28.2]}
30... g5 {[%clk 0:00:04.9]} 31. fxg5+ {[%clk 0:01:27.7]} 31... Kxg5 {[%clk
0:00:05.8]} 32. Kd3 {[%clk 0:01:27.7]} 32... Kg4 {[%clk 0:00:05.8]} 33. Bg2
{[%clk 0:01:17.7]} 33... a5 {[%clk 0:00:05]} 34. bxa5 {[%clk 0:01:17.1]} 34...
bxa5 {[%clk 0:00:05.9]} 35. Kc4 {[%clk 0:01:17.7]} 35... Ne6 {[%clk 0:00:05.1]}
36. Kb5 {[%clk 0:01:16.8]} 36... h5 {[%clk 0:00:04]} 37. Kxa5 {[%clk 0:01:16.4]}
37... Nd4 {[%clk 0:00:03]} 38. Kb6 {[%clk 0:01:11.9]} 38... Nc2 {[%clk
0:00:01.4]} 39. a4 {[%clk 0:01:10.9]} 39... Na3 {[%clk 0:00:01.4]} 40. Kc5
{[%clk 0:01:09.5]} 1-0